{"text_format":"3","workbook":"xlsx","n_sheets":1,"sheets":["PRICING SCHEDULE"],"not_rendered":{"images":1,"defined_names":2},"read":"whole","date_system":"1900"}

{"sheet":"PRICING SCHEDULE","index":0,"n_rows":32,"n_cols":17,"rows_kept":32,"merged":[[12,3,12,4],[13,3,13,4],[13,6,15,6],[14,3,14,4],[15,3,15,4],[17,5,17,7],[17,9,17,10],[17,12,17,13],[20,1,20,2],[28,2,31,2],[28,3,28,4],[28,5,28,6],[29,3,29,4],[30,3,30,4],[30,5,30,6],[31,3,31,4],[31,5,31,6]]}
[null,null,"SUPPLY CHAIN MANAGEMENT"]
[null,null,"Pricing schedule"]
["RFB No",null,"RFB 3228-2025"]
["RFB Title",null," \n REQUEST TO FOLLOW THE SITA PROCUREMENT PROCESS TO MAINTAIN AND EXPAND THE VMWARE CLOUD FOUNDATION PLATFORM FOR THE GPCE FOR A PERIOD OF 3 YEARS."]
["Bidder Name "]
[]
["1. INSTRUCTION FOR COMPLETING THE PRICING SCHEDULE"]
[]
["(a)  Bidder must complete/enter YELLOW cells only"]
["(b)  Unit and Line prices must be VAT EXCLUSIVE and in South African Rand (ZAR) currency."]
["(c) The price must include all cost to deliver the goods or render the service, including all applicable taxes, duty fees, logistics/delivery, storage, labour, overtime and subsistance and travel"]
["(d)  Prices that are dependent on Rate of Exchange (ROE) must use ROE indicated below, then enter in Column \"Forex %\" the percentage of the price that is ROE dependent (0% means the price is not ROE dependent)"]
[null,null,"Foreign currency","South African Rand (ZAR) exchange rate "]
[null,null,"1 US Dollar",{"v":16.32,"d":"R16.32"},null,null,"Mark with an X, which ROE is applicable"]
[null,null,"1 Euro",{"v":18.96,"d":"R18.96"}]
[null,null,"1 Pound (UK)",{"v":21.92,"d":"R21.92"}]
[]
[{"$nulls":5},"YEAR 1",{"$nulls":3},"YEAR 2",null,null,"YEAR 3",null,"TOTAL"]
["Item No","Good Name","Goods/Service description","Unit of measure","Forex %","Qty ","Unit Price \n(Excl VAT)","Line Price Y1","Qty ","Unit Price \n(Excl VAT)","Line Price Y2","Qty ","Unit Price \n(Excl VAT)","Line Price Y3","Line Price Term \n(Excl VAT)","BRAND / MODEL","Price clarification comment"]
[]
[1,"VMware VCF package activation"]
[1.01,"1592x VCF-CLD-FND","VMWare Cloud Foundation (VCF)","1 Years",{"v":0,"d":"0%"},1,0,{"$f":"F22*G22","v":0},1,0,{"$f":"F22*J22","v":0},1,0,{"$f":"M22*F22","v":0},{"$f":"H22+K22+N22","v":0}]
["1.02","1250x VM-MB-CR","VMware OEM Vendor onsite support services","1 Years",{"v":0,"d":"0%"},1,0,{"$f":"F23*G23","v":0},1,0,{"$f":"F23*J23","v":0},1,0,{"$f":"M23*F23","v":0},{"$f":"H23+K23+N23","v":0}]
[null,null,"TOTAL BID PRICE  (EXCL VAT)",{"$nulls":4},{"$f":"SUBTOTAL(9,H22:H23)","v":0},null,null,{"$f":"SUBTOTAL(9,K22:K23)","v":0},null,null,{"$f":"SUBTOTAL(9,N22:N23)","v":0},{"$f":"H24+K24+N24","v":0}]
[null,null,"VAT (@15%)",{"$nulls":4},{"$f":"H24*0.15","v":0},null,null,{"$f":"K24*0.15","v":0},null,null,{"$f":"N24*0.15","v":0},{"$f":"H25+K25+N25","v":0}]
[null,null,"TOTAL  BID PRICE (INCL VAT)",{"$nulls":4},{"$f":"H24+H25","v":0},null,null,{"$f":"K24+K25","v":0},null,null,{"$f":"N24+N25","v":0},{"$f":"H26+K26+N26","v":0}]
[]
[]
[null,null,"I, the bidder, confirm that the price(s) and rate(s) quoted cover all the goods and/or works specified in the bidding documents; that the price(s) or rate(s) cover all my obligations and I accept that any mistakes regarding price(s), rate(s) or calculations will be at my own risk.\n[Note: First convert to PDF, then add signature]"]
[{"$nulls":3},"Name",null,"Capacity"]
[]
[{"$nulls":3},"Signature (above)",null,"Date"]